fUST/lending_fUST_20250806
["ID","MTS","AMOUNT","RATE_DAILY","PERIOD"]
[377631327,1754468671876,172.44237,0.00013699,2]
[377631329,1754468744719,182.00716014,0.00024926,2]
[377631334,1754468853970,472.8,0.00030137,120]
[377631344,1754468931044,180.79894021,0.00024,7]
[377631354,1754469032767,-4401.04710585,0.00025788,4]
[377631355,1754469032777,-515.0,0.00025838,2]
[377631356,1754469032787,-260.644473,0.00025839,2]
[377631357,1754469032797,-300.0,0.00025972,2]
[377631358,1754469032806,-344.15930133,0.00025973,2]
[377631359,1754469032816,-500.0,0.00025973,2]
[377631360,1754469032825,-464.70511731,0.00025973,2]
[377631362,1754469032835,-500.0,0.00025987,2]
[377631364,1754469032844,-238.31137336,0.00025987,2]
[377631366,1754469032854,-46.69035149,0.00025987,2]
[377631376,1754469038684,-272.07530655,0.00025987,2]
[377631377,1754469038694,-24900.0,0.00025988,2]
[377631378,1754469038703,-1002.58499416,0.00026521,2]
[377631379,1754469038713,-2228.05391391,0.00026531,2]
[377631380,1754469038723,-151.0,0.00026561,2]
[377631382,1754469038732,-151.0,0.00026561,2]
[377631383,1754469038742,-4401.0471058,0.00026723,6]
[377631384,1754469038752,-216.47163855,0.00026937,2]
[377631385,1754469038762,-231.78005385,0.00026937,2]
[377631386,1754469038772,-160.0,0.00026941,2]
[377631387,1754469038782,-160.0,0.00026941,2]
[377631388,1754469038792,-160.0,0.00026941,2]
[377631389,1754469038801,-160.0,0.00026941,2]
[377631390,1754469038811,-842.45170444,0.00026941,2]
[377631391,1754469038821,-12657.93264304,0.00026941,2]
[377631392,1754469038831,-461.26544088,0.00026941,2]
[377631393,1754469038840,-160.0,0.00026941,2]
[377631394,1754469038850,-160.0,0.00026963,2]
[377631395,1754469038860,-168.54959549,0.00027028,15]
[377631396,1754469038870,-196.75229254,0.0002739,2]
[377631397,1754469038880,-500.0,0.00027397,2]
[377631398,1754469038890,-500.0,0.00027397,2]
[377631399,1754469038899,-500.0,0.00027397,30]
[377631400,1754469038909,-327.20820364,0.00027397,30]
[377631401,1754469038919,-514.17365247,0.00027397,30]
[377631402,1754469038929,-1032.49759194,0.00027554,2]
[377631403,1754469038938,-4401.0471058,0.00027658,8]
[377631404,1754469038947,-500.0,0.00027671,2]
[377631405,1754469038957,-151.0,0.0002793,2]
[377631406,1754469038967,-500.0,0.00027945,2]
[377631407,1754469038977,-1200.0,0.00027971,7]
[377631408,1754469038987,-970.0,0.00027979,2]
[377631409,1754469038996,-636.0,0.00027979,2]
[377631410,1754469039006,-408.0,0.00027979,2]
[377631411,1754469039016,-585.2,0.00027982,6]
[377631412,1754469039026,-420.0,0.00028108,2]
[377631413,1754469039035,-500.0,0.00028219,2]
[377631414,1754469039045,-585.2,0.00028284,6]
[377631415,1754469039055,-520.89603857,0.00028309,2]
[377631416,1754469039065,-153.15,0.00028408,15]
[377631417,1754469039074,-204.2,0.00028408,15]
[377631418,1754469039084,-204.2,0.00028408,15]
[377631419,1754469039094,-153.15,0.00028408,15]
[377631420,1754469039104,-204.2,0.00028421,15]
[377631421,1754469039113,-500.0,0.00028493,2]
[377631422,1754469039123,-153.15,0.00028508,15]
[377631423,1754469039132,-204.2,0.00028508,15]
[377631424,1754469039142,-153.15,0.00028508,15]
[377631425,1754469039151,-200.0,0.00028569,15]
[377631426,1754469039161,-300.0,0.00028569,15]
[377631427,1754469039174,-254.01759123,0.00028585,2]
[377631428,1754469039184,-585.2,0.00028586,6]
[377631429,1754469039193,-4401.0471058,0.00028592,10]
[377631430,1754469039203,-153.15,0.00028608,15]
[377631431,1754469039212,-153.15,0.00028608,15]
[377631432,1754469039222,-153.15,0.00028708,15]
[377631433,1754469039231,-153.15,0.00028708,15]
[377631434,1754469039240,-500.0,0.00028767,2]
[377631435,1754469039249,-1200.0,0.00028793,7]
[377631436,1754469039259,-585.2,0.00028888,6]
[377631437,1754469039269,-1149.463282,0.00029,5]
[377631438,1754469039278,-500.0,0.00029041,2]
[377631439,1754469039427,-585.2,0.0002919,6]
[377631440,1754469039446,-151.0,0.00029299,2]
[377631441,1754469039459,-616.98,0.00029315,2]
[377631442,1754469039676,-158.882406,0.000294,5]
[377631443,1754469039686,-813.632,0.00029452,2]
[377631444,1754469039695,-2200.0,0.00029452,2]
[377631445,1754469039705,-585.2,0.00029492,7]
[377631446,1754469039715,-4401.0471058,0.00029527,12]
[377631447,1754469039724,-1200.0,0.00029615,7]
[377631448,1754469039734,-585.2,0.00029793,7]
[377631449,1754469039744,-1714.15,0.000298,7]
[377631450,1754469039753,-203.0,0.0003004,25]
[377631451,1754469039763,-585.2,0.00030095,7]
[377631452,1754469039773,-178.49,0.00030117,10]
[377631453,1754469039782,-892.48,0.00030117,10]
[377631454,1754469039791,-9003.87700212,0.00030127,2]
[377631455,1754469039800,-1190.09835998,0.00030127,2]
[377631456,1754469039810,-12198.97085897,0.0003013,5]
[377631457,1754469039820,-25019.94284299,0.0003013,2]
[377631458,1754469039829,-500.0,0.00030149,2]
[377631459,1754469039838,-151.0,0.00030149,2]
[377631460,1754469039848,-151.0,0.00030149,2]
[377631461,1754469039858,-500.0,0.00030149,2]
[377631462,1754469039868,-500.0,0.0003016,5]
[377631463,1754469039878,-961.4018799,0.000302,2]
[377631464,1754469039887,-2689.11363669,0.0003029,15]
[377631465,1754469039897,-516.15638506,0.0003036,5]
[377631466,1754469039906,-585.2,0.00030397,7]
[377631467,1754469039915,-152.104552,0.00030399,10]
[377631468,1754469039926,-1113.42,0.000304,2]
[377631469,1754469039936,-587.0,0.0003042,2]
[377631470,1754469039946,-500.0,0.00030423,2]
[377631471,1754469039957,-505.51844708,0.00030423,2]
[377631472,1754469039969,-151.0,0.00030423,2]
[377631473,1754469039979,-151.0,0.00030423,2]
[377631474,1754469039988,-1200.0,0.00030437,7]
[377631475,1754469039998,-216.47163855,0.00030437,7]
[377631476,1754469040008,-4401.0471058,0.00030462,14]
[377631477,1754469040019,-158.882406,0.00030564,30]
[377631478,1754469040029,-151.0,0.00030668,2]
[377631479,1754469040039,-500.0,0.00030697,2]
[377631480,1754469040050,-301.3268588,0.00030697,2]
[377631481,1754469040059,-151.0,0.00030697,2]
[377631482,1754469040069,-585.2,0.00030699,7]
[377631483,1754469040079,-152.104552,0.0003077,6]
[377631484,1754469040089,-156.479824,0.0003077,6]
[377631485,1754469040098,-152.104552,0.00030819,5]
[377631486,1754469040109,-542.97728237,0.00030948,7]
[377631487,1754469040121,-500.0,0.00030971,2]
[377631488,1754469040131,-151.0,0.00030971,2]
[377631489,1754469040141,-636.0,0.00030979,2]
[377631490,1754469040151,-408.0,0.00030979,2]
[377631491,1754469040161,-302.24859597,0.0003099,2]
[377631492,1754469040178,-2933.60383739,0.00031,120]
[377631493,1754469040188,-151.0,0.00031,16]
[377631494,1754469040198,-585.2,0.00031001,7]
[377631495,1754469040208,-9003.87700212,0.00031038,2]
[377631496,1754469040219,-1190.09835998,0.00031038,2]
[377631497,1754469040228,-161.52264247,0.00031048,2]
[377631498,1754469040237,-4958.42091371,0.00031048,2]
[377631499,1754469040246,-9998.17139172,0.00031048,2]
[377631500,1754469040255,-9003.87700212,0.00031051,2]
[377631501,1754469040265,-1190.09835998,0.00031051,2]
[377631502,1754469040274,-20301.71173274,0.00031061,2]
[377631503,1754469040283,-451.33734802,0.00031073,5]
[377631504,1754469040292,-337.73291325,0.00031073,5]
[377631505,1754469040302,-500.0,0.00031073,5]
[377631506,1754469040311,-500.0,0.00031073,5]
[377631507,1754469040320,-500.0,0.00031073,2]
[377631508,1754469040330,-9003.87700212,0.0003109,2]
[377631509,1754469040339,-1190.09835998,0.0003109,2]
[377631510,1754469040348,-152.104552,0.00031093,5]
[377631511,1754469040357,-156.479824,0.00031093,5]
[377631512,1754469040365,-151.400381,0.00031093,5]
[377631513,1754469040374,-151.400375,0.00031093,5]
[377631514,1754469040385,-151.0,0.000311,13]
[377631515,1754469040395,-151.0,0.000311,10]
[377631516,1754469040405,-151.0,0.000311,19]
[377631517,1754469040414,-151.0,0.000311,12]
[377631518,1754469040424,-3807.6,0.000311,7]
[377631519,1754469040433,-41799.09,0.000311,7]
[377631520,1754469040443,-151.0,0.000311,16]
[377631521,1754469040453,-150.5,0.00031118,120]
[377631522,1754469040462,-150.5,0.00031118,120]
[377631523,1754469040472,-160.0,0.00031119,3]
[377631524,1754469040481,-160.0,0.00031119,5]
[377631525,1754469040490,-150.5,0.00031128,120]
[377631526,1754469040499,-150.5,0.00031128,120]
[377631527,1754469040509,-150.5,0.00031128,120]
[377631528,1754469040518,-150.5,0.00031138,120]
[377631529,1754469040528,-150.5,0.00031138,120]
[377631530,1754469040537,-150.5,0.00031138,120]
[377631531,1754469040546,-350.15648856,0.00031148,2]
[377631532,1754469040555,-160.0,0.00031148,3]
[377631533,1754469040565,-244181.22097024,0.00031148,20]
[377631534,1754469040578,-301.71173275,0.00031148,20]
[377631600,1754469046788,-799.27657679,0.00026421,2]
[377631601,1754469046916,-720.761685,0.00026421,2]
[377631604,1754469233635,3837.013866,0.00025312,3]
[377631605,1754469382284,160.0,0.00013699,2]
[377631606,1754469382599,260.0,0.00014247,2]
[377631607,1754469382953,240.0,0.00014795,2]
[377631611,1754469423185,200.2,0.00025205,2]
[377631613,1754469561895,502.0,0.00030136,120]
[377631614,1754469616284,172.44237,0.00013699,2]
[377631616,1754469836573,2790.48145639,0.00025,2]
[377631617,1754469836594,10000.0,0.00025,2]
[377631618,1754469836615,10000.0,0.00025,2]
[377631619,1754469836637,10000.0,0.00025,2]
[377631620,1754469836657,10000.0,0.00025,2]
[377631621,1754469836677,10000.0,0.00025,2]
[377631622,1754469836697,10000.0,0.00025,2]
[377631623,1754469836719,10000.0,0.00025,2]
[377631624,1754469836739,10000.0,0.00025,2]
[377631625,1754469836760,10000.0,0.00025,2]
[377631626,1754469836781,10000.0,0.00025,2]
[377631627,1754469836801,10000.0,0.00025,2]
[377631628,1754469836823,10000.0,0.00025,2]
[377631629,1754469836843,10000.0,0.00025,2]
[377631630,1754469836864,9086.23761968,0.00025,2]
[377631631,1754469910459,150.0,0.00025312,2]
[377631632,1754469952130,-624.09181699,0.000264,5]
[377631633,1754469952153,-200.0,0.00026423,2]
[377631634,1754469952174,-150.0,0.000265,2]
[377631635,1754469952202,-3897.21055232,0.00027183,7]
[377631636,1754469952223,-159.98724607,0.00027197,2]
[377631637,1754469952245,-159.98724607,0.00027247,2]
[377631638,1754469952267,-1689.74242564,0.00027297,2]
[377631639,1754469952287,-159.98724607,0.00027297,2]
[377631640,1754469952309,-300.0,0.00027372,2]
[377631641,1754469952333,-555.54318028,0.00027373,2]
[377631642,1754469952358,-610.46799989,0.00027382,2]
[377631643,1754469952388,-24900.0,0.00027383,2]
[377631644,1754469952411,-500.0,0.00027397,2]
[377631645,1754469952436,-506.67752471,0.00027397,2]
[377631646,1754469952456,-321.88172206,0.00027397,7]
[377631647,1754469952480,-500.0,0.00027397,30]
[377631648,1754469952504,-500.0,0.00027397,30]
[377631649,1754469952527,-500.0,0.00027397,30]
[377631650,1754469952550,-151.928508,0.00027599,9]
[377631651,1754469952574,-500.0,0.00027671,2]
[377631652,1754469952594,-160.0,0.00027695,3]
[377631653,1754469952623,-3897.21055212,0.0002807,9]
[377631654,1754469952646,-390.1,0.00028119,6]
[377631655,1754469952670,-800.0,0.00028245,7]
[377631656,1754469952691,-971.0,0.00028367,2]
[377631657,1754469952712,-636.0,0.00028367,2]
[377631658,1754469952734,-408.0,0.00028367,2]
[377631659,1754469952755,-390.1,0.00028408,6]
[377631660,1754469952779,-204.2,0.00028408,15]
[377631661,1754469952800,-156.479824,0.00028429,9]
[377631662,1754469952823,-151.928508,0.00028429,9]
[377631663,1754469952845,-500.0,0.00028507,30]
[377631664,1754469952867,-204.2,0.00028508,15]
[377631665,1754469952890,-390.1,0.00028698,6]
[377631666,1754469952913,-160.0,0.00028836,4]
[377631667,1754469952940,-3897.21055212,0.00028957,10]
[377631668,1754469952962,-390.1,0.00028987,6]
[377631669,1754469952983,-800.0,0.00029067,7]
[377631670,1754469953005,-1689.74242563,0.00029097,2]
[377631671,1754469953027,-390.1,0.00029277,6]
[377631672,1754469953048,-390.1,0.00029566,7]
[377631673,1754469953069,-420.0,0.0002958,2]
[377631674,1754469953090,-160.0,0.00029726,2]
[377631675,1754469953111,-160.0,0.00029726,2]
[377631676,1754469953132,-842.45170444,0.00029726,2]
[377631677,1754469953155,-461.26544088,0.00029726,2]
[377631678,1754469953175,-160.0,0.00029726,2]
[377631679,1754469953197,-216.47163855,0.00029726,2]
[377631680,1754469953220,-160.0,0.00029726,2]
[377631681,1754469953242,-2200.0,0.00029738,2]
[377631682,1754469953265,-500.0,0.00029752,30]
[377631683,1754469953292,-3897.21055212,0.00029844,12]
[377631684,1754469953315,-390.1,0.00029856,7]
[377631685,1754469953337,-800.0,0.00029889,7]
[377631686,1754469953359,-160.0,0.00029978,5]
[377631687,1754469953379,-1500.0,0.0003,2]
[377631688,1754469953401,-177.81231386,0.00030036,2]
[377631689,1754469953422,-20301.71173274,0.00030037,2]
[377631690,1754469953455,-151.928508,0.0003009,6]
[377631691,1754469953478,-151.0,0.00030119,2]
[377631692,1754469953500,-250.0,0.00030119,2]
[377631693,1754469953524,-250.0,0.00030119,2]
[377631694,1754469953546,-250.0,0.00030119,2]
[377631695,1754469953567,-250.0,0.00030119,2]
[377631696,1754469953594,-200.0,0.00030121,15]
[377631697,1754469953621,-200.0,0.00030121,15]
[377631698,1754469953642,-500.0,0.00030126,30]
[377631699,1754469953664,-13670.59850906,0.00030127,2]
[377631700,1754470046122,-500.0,0.00027373,2]
[377631701,1754470046143,-1000.0,0.00027921,5]
[377631702,1754470046164,-162.5,0.00028134,6]
[377631703,1754470046186,-700.0,0.00028198,7]
[377631704,1754470046206,-286.84411038,0.00028322,2]
[377631705,1754470046226,-408.0,0.00028367,2]
[377631706,1754470046248,-12657.93264304,0.00028367,2]
[377631707,1754470046268,-636.0,0.00028367,2]
[377631708,1754470046290,-162.5,0.00028422,6]
[377631709,1754470046310,-286.84411038,0.00028466,2]
[377631710,1754470046330,-1500.0,0.00028468,5]
[377631711,1754470046353,-286.84411038,0.0002861,2]
[377631712,1754470046376,-162.5,0.0002871,6]
[377631713,1754470046397,-162.5,0.00028998,6]
[377631714,1754470046422,-300.0,0.00029015,2]
[377631715,1754470046443,-1670.67809582,0.00029016,5]
[377631716,1754470049141,-329.32190418,0.00029016,5]
[377631717,1754470049162,-700.0,0.0002902,7]
[377631718,1754470049184,-162.5,0.00029286,6]
[377631719,1754470049205,-1618.21262404,0.00029564,5]
[377631720,1754470049228,-162.5,0.00029575,7]
[377631721,1754470049251,-700.0,0.00029842,7]
[377631722,1754470049272,-162.5,0.00029863,7]
[377631723,1754470049294,-1335.86316114,0.00030127,2]
[377631724,1754470049315,-1249.37434875,0.00030127,2]
[377631725,1754470049335,-420.44,0.00030127,3]
[377631726,1754470049356,-210.22,0.00030127,3]
[377631727,1754470049376,-630.69,0.00030127,3]
[377631728,1754470049396,-54631.2322769,0.00030137,2]
[377631729,1754470049418,-162.5,0.00030151,7]
[377631730,1754470049440,-500.0,0.0003016,5]
[377631731,1754470049461,-500.0,0.0003016,5]
[377631732,1754470049481,-516.15638506,0.0003016,5]
[377631733,1754470049507,-500.0,0.0003016,5]
[377631734,1754470049528,-151.0,0.0003016,5]
[377631735,1754470049549,-151.0,0.0003016,5]
[377631736,1754470049569,-151.0,0.0003016,5]
[377631737,1754470049590,-500.0,0.0003016,5]
[377631738,1754470049609,-451.33734802,0.00030173,5]
[377631739,1754470049630,-151.928508,0.00030378,3]
[377631740,1754470049653,-15006.4616702,0.0003039,2]
[377631741,1754470049675,-1249.37434875,0.0003039,2]
[377631742,1754470049696,-1113.42,0.000304,2]
[377631743,1754470049717,-199.24482303,0.00030434,5]
[377631744,1754470049738,-148.44310282,0.00030434,5]
[377631745,1754470050215,-2.55689718,0.00030434,5]
[377631746,1754470050237,-151.0,0.00030434,5]
[377631747,1754470050260,-162.5,0.00030439,7]
[377631748,1754470050281,-200.0,0.00030493,120]
[377631749,1754470050302,-151.928508,0.00030504,10]
[377631750,1754470050324,-700.0,0.00030664,7]
[377631751,1754470050346,-151.928508,0.00030669,2]
[377631752,1754470050367,-151.0,0.00030708,5]
[377631753,1754470050387,-151.0,0.00030708,5]
[377631754,1754470050408,-162.5,0.00030727,7]
[377631755,1754470050435,-3897.21055212,0.0003073,14]
[377631756,1754470050457,-1606.3396659,0.00030898,2]
[377631757,1754470055771,763.76238032,0.00025312,2]
[377631758,1754470055795,96.21761968,0.00025312,2]
[377631800,1754470232198,-312.16666667,0.00028,3]
[377631802,1754470232208,-216.47163855,0.00029736,2]
[377631804,1754470232217,-160.0,0.00029736,2]
[377631806,1754470232227,-160.0,0.00029736,2]
[377631808,1754470232236,-2200.0,0.00029738,2]
[377631809,1754470232246,-500.0,0.0003016,5]
[377631811,1754470232255,-500.0,0.00030173,5]
[377631813,1754470232264,-400.0,0.00030289,2]
[377631814,1754470232274,-4858.55286155,0.0003029,2]
[377631816,1754470232311,-17362.04254822,0.0003029,2]
[377631840,1754470237783,-119875.72033829,0.0003029,2]
[377631841,1754470237792,-1066.51436102,0.00030621,2]
[377631842,1754470237803,-1002.08,0.000307,2]
[377631843,1754470237813,-434.46228619,0.00030721,5]
[377631844,1754470237824,-3247.6754601,0.00030849,15]
[377631845,1754470237835,-3000.0,0.00030898,2]
[377631846,1754470237845,-151.0,0.000309,15]
[377631847,1754470237855,-542.97728237,0.00030949,7]
[377631848,1754470237865,-151.0,0.00031,10]
[377631849,1754470237877,-500.0,0.00031,10]
[377631850,1754470237887,-162.5,0.00031015,7]
[377631851,1754470237897,-151.0,0.0003103,2]
[377631853,1754470237907,-500.0,0.00031047,30]
[377631855,1754470237916,-9998.17139172,0.00031049,2]
[377631856,1754470237926,-9235.49780658,0.00031049,2]
[377631857,1754470237936,-17261.08924816,0.00031049,2]
[377631859,1754470237946,-161.52264247,0.00031049,2]
[377631861,1754470237955,-19228.97878596,0.00031049,5]
[377631863,1754470237964,-500.0,0.0003105,30]
[377631864,1754470237974,-203.0,0.0003105,28]
[377631865,1754470237984,-500.0,0.0003106,30]
[377631866,1754470237993,-500.0,0.0003106,30]
[377631867,1754470238003,-506.155306,0.00031073,5]
[377631868,1754470238013,-308.83959206,0.00031073,5]
[377631869,1754470238023,-320.44311548,0.00031073,5]
[377631870,1754470238033,-500.0,0.00031073,5]
[377631871,1754470238043,-500.0,0.00031073,5]
[377631872,1754470238052,-500.0,0.00031073,5]
[377631873,1754470238062,-551.72797085,0.00031073,5]
[377631874,1754470238072,-500.0,0.00031073,5]
[377631875,1754470238082,-500.0,0.00031073,5]
[377631876,1754470238093,-337.73291325,0.00031073,5]
[377631877,1754470238102,-500.0,0.00031073,2]
[377631878,1754470238112,-500.0,0.00031073,5]
[377631879,1754470238122,-500.0,0.00031073,5]
[377631880,1754470238131,-500.0,0.00031073,5]
[377631881,1754470238141,-500.0,0.00031099,30]
[377631882,1754470238150,-500.0,0.00031099,30]
[377631883,1754470238160,-500.0,0.00031099,30]
[377631884,1754470238170,-151.0,0.000311,14]
[377631885,1754470238180,-151.0,0.000311,20]
[377631886,1754470238189,-151.0,0.000311,18]
[377631887,1754470238199,-151.0,0.000311,18]
[377631888,1754470238208,-151.0,0.000311,18]
[377631889,1754470238218,-151.928508,0.000311,10]
[377631890,1754470238228,-150.5,0.00031118,120]
[377631891,1754470238238,-151.0,0.00031119,6]
[377631892,1754470238248,-215.9402422,0.00031119,6]
[377631893,1754470238258,-500.0,0.00031119,2]
[377631894,1754470238268,-151.0,0.00031119,2]
[377631895,1754470238277,-151.0,0.00031119,2]
[377631896,1754470238287,-500.0,0.00031119,6]
[377631897,1754470238296,-160.0,0.00031119,6]
[377631898,1754470238306,-207.68524764,0.00031119,5]
[377631899,1754470238316,-150.5,0.00031119,120]
[377631900,1754470238326,-150.5,0.00031128,120]
[377631901,1754470238336,-150.5,0.00031129,120]
[377631902,1754470238345,-150.5,0.00031129,120]
[377631903,1754470238355,-500.0,0.00031137,30]
[377631904,1754470238364,-150.5,0.00031138,120]
[377631905,1754470238374,-150.5,0.00031139,120]
[377631906,1754470238385,-150.5,0.00031139,120]
[377631907,1754470238395,-13505.8155032,0.00031139,2]
[377631908,1754470238404,-1645.00955918,0.00031139,2]
[377631909,1754470238414,-500.0,0.00031147,30]
[377631910,1754470238423,-500.0,0.00031147,30]
[377631911,1754470238433,-500.0,0.00031147,30]
[377631912,1754470238442,-500.0,0.00031147,30]
[377631913,1754470238451,-500.0,0.00031147,30]
[377631914,1754470238461,-500.0,0.00031147,30]
[377631915,1754470238471,-500.0,0.00031147,30]
[377631916,1754470238480,-500.0,0.00031147,30]
[377631917,1754470238490,-184.98,0.00031147,30]
[377631918,1754470238500,-527.46908335,0.00031147,30]
[377631919,1754470238510,-151.0,0.00031148,7]
[377631920,1754470238520,-151.0,0.00031148,7]
[377631921,1754470238529,-151.0,0.00031149,7]
[377631922,1754470238539,-151.0,0.00031149,7]
[377631923,1754470238548,-151.0,0.00031149,7]
[377631924,1754470238558,-151.0,0.00031149,7]
[377631925,1754470238567,-151.0,0.00031149,7]
[377631926,1754470238577,-151.0,0.00031149,7]
[377631927,1754470238587,-151.0,0.00031149,7]
[377631928,1754470238597,-163.388706,0.00031149,7]
[377631929,1754470238607,-151.0,0.00031149,7]
[377631930,1754470238616,-151.0,0.00031149,7]
[377631931,1754470238626,-151.0,0.00031149,7]
[377631932,1754470238637,-151.0,0.00031149,7]
[377631933,1754470238647,-151.0,0.00031149,7]
[377631934,1754470238658,-151.0,0.00031149,7]
[377631935,1754470238668,-151.0,0.00031149,7]
[377631936,1754470238678,-151.0,0.00031149,7]
[377631937,1754470238689,-151.0,0.00031149,7]
[377631938,1754470238698,-151.0,0.00031149,7]
[377631939,1754470238708,-151.0,0.00031149,7]
[377631940,1754470238718,-151.0,0.00031149,7]
[377631941,1754470238728,-151.0,0.00031149,7]
[377631942,1754470238738,-151.0,0.00031149,7]
[377631943,1754470238749,-151.0,0.00031149,7]
[377631944,1754470238760,-151.0,0.00031149,7]
[377631945,1754470238770,-151.0,0.00031149,7]
[377631946,1754470238779,-151.0,0.00031149,7]
[377631947,1754470238789,-259.512521,0.00031149,7]
[377631948,1754470238798,-151.0,0.00031149,7]
[377631949,1754470238808,-151.0,0.00031149,7]
[377631950,1754470238818,-301.997916,0.00031149,7]
[377631951,1754470238828,-151.0,0.00031149,7]
[377631952,1754470238838,-151.0,0.00031149,7]
[377631953,1754470238860,-151.0,0.00031149,7]
[377631954,1754470238876,-151.0,0.00031149,7]
[377631955,1754470238886,-151.0,0.00031149,7]
[377631956,1754470238896,-151.0,0.00031149,7]
[377631957,1754470238906,-151.0,0.00031149,7]
[377631958,1754470238918,-151.0,0.00031149,7]
[377631959,1754470238927,-151.0,0.00031149,7]
[377631960,1754470238937,-151.0,0.00031149,7]
[377631961,1754470238947,-151.0,0.00031149,7]
[377631962,1754470238956,-151.0,0.00031149,7]
[377631963,1754470238974,-151.0,0.00031149,7]
[377631964,1754470238985,-151.0,0.00031149,7]
[377631965,1754470238995,-237.15291,0.00031149,7]
[377631966,1754470239005,-151.0,0.00031149,7]
[377631967,1754470239017,-151.0,0.00031149,7]
[377631968,1754470239027,-151.0,0.00031149,7]
[377631969,1754470239037,-267.761685,0.00031149,7]
[377631970,1754470239047,-151.0,0.00031149,7]
[377631971,1754470239057,-151.0,0.00031149,7]
[377631972,1754470239066,-151.0,0.00031149,7]
[377631973,1754470239077,-151.0,0.00031149,7]
[377631974,1754470239086,-151.0,0.00031149,7]
[377631975,1754470239096,-151.0,0.00031149,7]
[377631976,1754470239105,-151.0,0.00031149,7]
[377631977,1754470239242,-151.0,0.00031149,7]
[377631979,1754470239252,-151.0,0.00031149,7]
[377631981,1754470239262,-151.0,0.00031149,7]
[377631982,1754470239272,-151.0,0.00031149,7]
[377631983,1754470239281,-151.0,0.00031149,7]
[377631984,1754470239291,-254.977655,0.00031149,7]
[377631985,1754470239301,-216.47163855,0.00031149,7]
[377631986,1754470239311,-151.0,0.00031149,7]
[377631987,1754470239321,-151.0,0.00031149,7]
[377631988,1754470239330,-151.0,0.00031149,7]
[377631989,1754470239340,-151.0,0.00031149,7]
[377631990,1754470239349,-290.644915,0.00031149,7]
[377631991,1754470239359,-151.0,0.00031149,7]
[377631992,1754470239368,-151.0,0.00031149,7]
[377631993,1754470239378,-151.0,0.00031149,7]
[377631994,1754470239388,-151.0,0.00031149,7]
[377631995,1754470239397,-151.0,0.00031149,7]
[377631996,1754470239407,-151.0,0.00031149,7]
[377631997,1754470239417,-151.0,0.00031149,7]
[377632000,1754470239428,-151.0,0.00031149,7]
[377632001,1754470239437,-151.0,0.00031149,7]
[377632003,1754470239447,-151.0,0.00031149,7]
[377632004,1754470239456,-151.0,0.00031149,7]
[377632007,1754470239467,-151.0,0.00031149,7]
[377632009,1754470239476,-151.0,0.00031149,7]
[377632011,1754470239486,-151.0,0.00031149,7]
[377632012,1754470239495,-151.0,0.00031149,7]
[377632013,1754470239504,-189.48200984,0.00031149,7]
[377632014,1754470239514,-151.0,0.00031149,7]
[377632015,1754470239524,-151.0,0.00031149,7]
[377632016,1754470239533,-209.730705,0.00031149,7]
[377632017,1754470239542,-151.0,0.00031149,7]
[377632018,1754470239551,-207.788242,0.00031149,7]
[377632019,1754470239561,-350.15648856,0.00031149,2]